[Event "Titled Tuesday Blitz March 07 Late 2023"]
[White "Bortnyk, Olexandr"]
[Black "Zhang, Derek"]
[WhiteFideId "14120828"]
[BlackFideId "2087871"]
[WhiteElo "2734"]
[BlackElo "2087"]
[Result "1-0"]
[Round "01"]
[TimeControl "180+2"]
[Date "2023.03.07"]
[WhiteClock "0:00:03"]
[BlackClock "0:00:01"]

1. d4 {[%clk 0:02:56]}  d6 {[%clk 0:02:59]} 2. Nc3 {[%clk 0:02:55]}  e5 {[%clk 0:03:00]} 3. dxe5 {[%clk 0:02:48]}  dxe5 {[%clk 0:02:59]} 4. Qxd8+ {[%clk 0:02:49]}  Kxd8 {[%clk 0:02:59]} 5. Bg5+ {[%clk 0:02:50]}  f6 {[%clk 0:02:59]} 6. O-O-O+ {[%clk 0:02:51]}  Nd7 {[%clk 0:02:57]} 7. Bh4 {[%clk 0:02:52]}  c6 {[%clk 0:02:57]} 8. e3 {[%clk 0:02:49]}  Kc7 {[%clk 0:02:57]} 9. f4 {[%clk 0:02:49]}  Nh6 {[%clk 0:02:53]} 10. fxe5 {[%clk 0:02:36]}  Nxe5 {[%clk 0:02:53]} 11. Nf3 {[%clk 0:02:35]}  Nxf3 {[%clk 0:02:46]} 12. gxf3 {[%clk 0:02:32]}  Nf5 {[%clk 0:02:46]} 13. Bg3+ {[%clk 0:02:21]}  Nxg3 {[%clk 0:02:41]} 14. hxg3 {[%clk 0:02:22]}  Be6 {[%clk 0:02:40]} 15. Bh3 {[%clk 0:02:20]}  Bxh3 {[%clk 0:02:39]} 16. Rxh3 {[%clk 0:02:21]}  Bc5 {[%clk 0:02:37]} 17. e4 {[%clk 0:02:15]}  h6 {[%clk 0:02:34]} 18. Rd3 {[%clk 0:02:10]}  Rad8 {[%clk 0:02:33]} 19. Ne2 {[%clk 0:02:11]}  Rhe8 {[%clk 0:02:15]} 20. Rh5 {[%clk 0:02:06]}  b6 {[%clk 0:02:05]} 21. a3 {[%clk 0:02:03]}  a5 {[%clk 0:02:04]} 22. Rc3 {[%clk 0:01:59]}  Bd6 {[%clk 0:01:49]} 23. Rd3 {[%clk 0:01:11]}  Be5 {[%clk 0:01:39]} 24. g4 {[%clk 0:01:02]}  Rd6 {[%clk 0:00:43]} 25. f4 {[%clk 0:01:00]}  Rxd3 {[%clk 0:00:42]} 26. cxd3 {[%clk 0:01:01]}  Bd6 {[%clk 0:00:42]} 27. Kd2 {[%clk 0:00:59]}  Bc5 {[%clk 0:00:37]} 28. d4 {[%clk 0:00:58]}  Bd6 {[%clk 0:00:37]} 29. Ke3 {[%clk 0:00:56]}  c5 {[%clk 0:00:24]} 30. d5 {[%clk 0:00:52]}  b5 {[%clk 0:00:24]} 31. Ng1 {[%clk 0:00:44]}  b4 {[%clk 0:00:20]} 32. Nf3 {[%clk 0:00:44]}  c4 {[%clk 0:00:19]} 33. axb4 {[%clk 0:00:43]}  axb4 {[%clk 0:00:19]} 34. e5 {[%clk 0:00:42]}  Bc5+ {[%clk 0:00:20]} 35. Ke4 {[%clk 0:00:43]}  Kd7 {[%clk 0:00:16]} 36. Rh1 {[%clk 0:00:39]}  Rc8 {[%clk 0:00:15]} 37. Rc1 {[%clk 0:00:38]}  Bb6 {[%clk 0:00:15]} 38. e6+ {[%clk 0:00:35]}  Kd6 {[%clk 0:00:15]} 39. Nh4 {[%clk 0:00:36]}  g6 {[%clk 0:00:14]} 40. Nxg6 {[%clk 0:00:36]}  c3 {[%clk 0:00:15]} 41. bxc3 {[%clk 0:00:34]}  bxc3 {[%clk 0:00:15]} 42. e7 {[%clk 0:00:23]}  Kd7 {[%clk 0:00:09]} 43. d6 {[%clk 0:00:21]}  c2 {[%clk 0:00:09]} 44. Nf8+ {[%clk 0:00:17]}  Kxd6 {[%clk 0:00:07]} 45. Ng6 {[%clk 0:00:12]}  Kd7 {[%clk 0:00:07]} 46. Kd3 {[%clk 0:00:07]}  Rc6 {[%clk 0:00:05]} 47. f5 {[%clk 0:00:02]}  Bc7 {[%clk 0:00:04]} 48. Rxc2 {[%clk 0:00:03]}  Rxc2 {[%clk 0:00:04]} 49. Kxc2 {[%clk 0:00:03]}  Bd6 {[%clk 0:00:05]} 50. Kd3 {[%clk 0:00:02]}  Bxe7 {[%clk 0:00:05]} 51. Kc4 {[%clk 0:00:02]}  Kd6 {[%clk 0:00:03]} 52. Nxe7 {[%clk 0:00:02]}  Kxe7 {[%clk 0:00:03]} 53. Kc5 {[%clk 0:00:03]}  Ke8 {[%clk 0:00:01]} 54. Kd6 {[%clk 0:00:03]} 1-0


[Site "https://www.chess.com"]

[Event "Titled Tuesday Blitz March 07 Late 2023"]
[White "Ferreira, Vitor Hugo Vieira"]
[Black "Hakobyan, Aram"]
[WhiteFideId "2119765"]
[BlackFideId "13306677"]
[WhiteElo "2146"]
[BlackElo "2563"]
[Result "0-1"]
[Round "01"]
[TimeControl "180+2"]
[Date "2023.03.07"]
[WhiteClock "0:00:24"]
[BlackClock "0:00:48"]

1. Nf3 {[%clk 0:02:52]}  g6 {[%clk 0:03:00]} 2. g3 {[%clk 0:02:52]}  Bg7 {[%clk 0:03:01]} 3. Bg2 {[%clk 0:02:53]}  e5 {[%clk 0:03:00]} 4. O-O {[%clk 0:02:49]}  Nc6 {[%clk 0:03:01]} 5. c4 {[%clk 0:02:49]}  Nge7 {[%clk 0:03:00]} 6. Nc3 {[%clk 0:02:48]}  O-O {[%clk 0:02:59]} 7. d3 {[%clk 0:02:46]}  d6 {[%clk 0:02:58]} 8. Rb1 {[%clk 0:02:46]}  a5 {[%clk 0:02:56]} 9. a3 {[%clk 0:02:46]}  f5 {[%clk 0:02:56]} 10. Ne1 {[%clk 0:02:38]}  Be6 {[%clk 0:02:54]} 11. Nd5 {[%clk 0:02:34]}  Qd7 {[%clk 0:02:51]} 12. b4 {[%clk 0:02:33]}  axb4 {[%clk 0:02:51]} 13. axb4 {[%clk 0:02:34]}  Bf7 {[%clk 0:02:43]} 14. Nc2 {[%clk 0:02:33]}  Nxd5 {[%clk 0:02:42]} 15. cxd5 {[%clk 0:02:21]}  Ne7 {[%clk 0:02:41]} 16. e4 {[%clk 0:02:14]}  c6 {[%clk 0:02:23]} 17. dxc6 {[%clk 0:02:10]}  bxc6 {[%clk 0:02:24]} 18. exf5 {[%clk 0:02:06]}  Nxf5 {[%clk 0:02:18]} 19. b5 {[%clk 0:02:05]}  cxb5 {[%clk 0:02:17]} 20. Bxa8 {[%clk 0:02:02]}  Rxa8 {[%clk 0:02:18]} 21. Qf3 {[%clk 0:02:01]}  Rc8 {[%clk 0:02:12]} 22. Nb4 {[%clk 0:01:55]}  Nd4 {[%clk 0:02:11]} 23. Qe4 {[%clk 0:01:53]}  d5 {[%clk 0:02:04]} 24. Qg2 {[%clk 0:01:47]}  Be6 {[%clk 0:01:50]} 25. Be3 {[%clk 0:01:43]}  Ne2+ {[%clk 0:01:25]} 26. Kh1 {[%clk 0:01:42]}  d4 {[%clk 0:01:26]} 27. Rb2 {[%clk 0:00:59]}  Bh3 {[%clk 0:01:24]} 28. Qd5+ {[%clk 0:00:53]}  Qxd5+ {[%clk 0:01:23]} 29. Nxd5 {[%clk 0:00:54]}  Bxf1 {[%clk 0:01:18]} 30. Ne7+ {[%clk 0:00:54]}  Kf8 {[%clk 0:01:10]} 31. Nxc8 {[%clk 0:00:55]}  dxe3 {[%clk 0:01:10]} 32. fxe3 {[%clk 0:00:53]}  e4 {[%clk 0:01:06]} 33. d4 {[%clk 0:00:53]}  Bh6 {[%clk 0:00:55]} 34. Nd6 {[%clk 0:00:53]}  Bxe3 {[%clk 0:00:53]} 35. Nxe4 {[%clk 0:00:34]}  Bxd4 {[%clk 0:00:50]} 36. Rxb5 {[%clk 0:00:29]}  Nxg3+ {[%clk 0:00:49]} 37. hxg3 {[%clk 0:00:26]}  Bxb5 {[%clk 0:00:50]} 38. Nd6 {[%clk 0:00:25]}  Bc6+ {[%clk 0:00:50]} 39. Kh2 {[%clk 0:00:26]}  Be5 {[%clk 0:00:48]} 40. Nc4 {[%clk 0:00:26]}  Bc7 {[%clk 0:00:48]} 41. Na5 {[%clk 0:00:24]}  Bxa5 {[%clk 0:00:48]} 0-1


[Site "https://www.chess.com"]

[Event "Titled Tuesday Blitz March 07 Late 2023"]
[White "Womacka, Mathias"]
[Black "Lenderman, Aleksandr"]
[WhiteFideId "4611390"]
[BlackFideId "2021285"]
[WhiteElo "2377"]
[BlackElo "2607"]
[Result "0-1"]
[Round "01"]
[TimeControl "180+2"]
[Date "2023.03.07"]
[WhiteClock "0:00:01"]
[BlackClock "0:00:58"]

1. e4 {[%clk 0:02:57]}  e6 {[%clk 0:02:49]} 2. d4 {[%clk 0:02:56]}  d5 {[%clk 0:02:49]} 3. Nd2 {[%clk 0:02:56]}  c5 {[%clk 0:02:46]} 4. exd5 {[%clk 0:02:55]}  Qxd5 {[%clk 0:02:45]} 5. Ngf3 {[%clk 0:02:55]}  cxd4 {[%clk 0:02:45]} 6. Bc4 {[%clk 0:02:55]}  Qd8 {[%clk 0:02:45]} 7. O-O {[%clk 0:02:55]}  Nc6 {[%clk 0:02:41]} 8. Nb3 {[%clk 0:02:54]}  a6 {[%clk 0:02:41]} 9. Nbxd4 {[%clk 0:02:54]}  Nxd4 {[%clk 0:02:41]} 10. Nxd4 {[%clk 0:02:54]}  Nf6 {[%clk 0:02:36]} 11. Bf4 {[%clk 0:02:45]}  Bc5 {[%clk 0:02:31]} 12. Nb3 {[%clk 0:02:40]}  Qxd1 {[%clk 0:02:27]} 13. Raxd1 {[%clk 0:02:37]}  Be7 {[%clk 0:02:27]} 14. Be2 {[%clk 0:02:28]}  Nd5 {[%clk 0:02:25]} 15. Be5 {[%clk 0:02:19]}  f6 {[%clk 0:02:25]} 16. Bg3 {[%clk 0:02:07]}  Nb4 {[%clk 0:02:25]} 17. c3 {[%clk 0:02:01]}  Nc6 {[%clk 0:02:24]} 18. Bc7 {[%clk 0:01:16]}  Bd7 {[%clk 0:02:20]} 19. Bb6 {[%clk 0:01:15]}  Ne5 {[%clk 0:02:13]} 20. Nc5 {[%clk 0:01:11]}  Bxc5 {[%clk 0:02:12]} 21. Bxc5 {[%clk 0:01:10]}  Bc6 {[%clk 0:02:12]} 22. Bd4 {[%clk 0:00:47]}  Ng6 {[%clk 0:02:11]} 23. Bc4 {[%clk 0:00:41]}  Nf4 {[%clk 0:02:02]} 24. f3 {[%clk 0:00:38]}  Bd5 {[%clk 0:02:02]} 25. Bxd5 {[%clk 0:00:35]}  Nxd5 {[%clk 0:02:02]} 26. c4 {[%clk 0:00:33]}  Nf4 {[%clk 0:01:52]} 27. Be3 {[%clk 0:00:31]}  Ng6 {[%clk 0:01:52]} 28. Rd6 {[%clk 0:00:29]}  Ke7 {[%clk 0:01:22]} 29. Rfd1 {[%clk 0:00:19]}  Rhd8 {[%clk 0:01:16]} 30. Bc5 {[%clk 0:00:18]}  Rxd6 {[%clk 0:01:16]} 31. Rxd6 {[%clk 0:00:15]}  Rc8 {[%clk 0:01:09]} 32. Rc6+ {[%clk 0:00:12]}  Kd8 {[%clk 0:01:09]} 33. Bb6+ {[%clk 0:00:08]}  Kd7 {[%clk 0:01:09]} 34. Rxc8 {[%clk 0:00:08]}  Kxc8 {[%clk 0:01:10]} 35. Kf2 {[%clk 0:00:08]}  Ne5 {[%clk 0:01:10]} 36. b3 {[%clk 0:00:08]}  Nd3+ {[%clk 0:01:07]} 37. Ke3 {[%clk 0:00:07]}  Nb4 {[%clk 0:01:08]} 38. Ba5 {[%clk 0:00:04]}  Nc6 {[%clk 0:01:07]} 39. Bc3 {[%clk 0:00:04]}  Kd7 {[%clk 0:01:07]} 40. g4 {[%clk 0:00:04]}  Kd6 {[%clk 0:01:07]} 41. h4 {[%clk 0:00:03]}  Kc5 {[%clk 0:01:04]} 42. h5 {[%clk 0:00:02]}  h6 {[%clk 0:01:00]} 43. Ke4 {[%clk 0:00:01]}  b5 {[%clk 0:00:57]} 44. cxb5 {[%clk 0:00:01]}  axb5 {[%clk 0:00:58]} 0-1


[Site "https://www.chess.com"]

[Event "Titled Tuesday Blitz March 07 Late 2023"]
[White "Yoo, Christopher Woojin"]
[Black "Kalajzic, Ivan"]
[WhiteFideId "30909694"]
[BlackFideId "14506378"]
[WhiteElo "2519"]
[BlackElo "2203"]
[Result "1-0"]
[Round "01"]
[TimeControl "180+2"]
[Date "2023.03.07"]
[WhiteClock "0:00:54"]
[BlackClock "0:00:13"]

1. d4 {[%clk 0:03:00]}  d5 {[%clk 0:02:59]} 2. Nf3 {[%clk 0:02:59]}  Nc6 {[%clk 0:02:59]} 3. c4 {[%clk 0:02:52]}  Bg4 {[%clk 0:02:58]} 4. cxd5 {[%clk 0:02:51]}  Bxf3 {[%clk 0:02:59]} 5. gxf3 {[%clk 0:02:52]}  Qxd5 {[%clk 0:02:58]} 6. e3 {[%clk 0:02:52]}  e5 {[%clk 0:02:58]} 7. Nc3 {[%clk 0:02:52]}  Bb4 {[%clk 0:02:58]} 8. Bd2 {[%clk 0:02:51]}  Bxc3 {[%clk 0:02:58]} 9. bxc3 {[%clk 0:02:52]}  Nf6 {[%clk 0:02:58]} 10. Bg2 {[%clk 0:02:23]}  exd4 {[%clk 0:02:51]} 11. cxd4 {[%clk 0:02:21]}  O-O {[%clk 0:02:48]} 12. O-O {[%clk 0:02:20]}  Rfe8 {[%clk 0:02:37]} 13. Rb1 {[%clk 0:02:16]}  Rab8 {[%clk 0:02:28]} 14. Qb3 {[%clk 0:02:14]}  Qd6 {[%clk 0:02:24]} 15. Rfc1 {[%clk 0:02:09]}  Nd7 {[%clk 0:01:57]} 16. Qa4 {[%clk 0:01:49]}  Nb6 {[%clk 0:01:52]} 17. Qb5 {[%clk 0:01:48]}  a6 {[%clk 0:01:38]} 18. Qc5 {[%clk 0:01:48]}  Qe6 {[%clk 0:01:27]} 19. Rb3 {[%clk 0:01:28]}  Nd7 {[%clk 0:01:23]} 20. Qg5 {[%clk 0:01:25]}  Ne7 {[%clk 0:01:15]} 21. Rxc7 {[%clk 0:01:22]}  Nf6 {[%clk 0:01:06]} 22. Qe5 {[%clk 0:01:17]}  Ng6 {[%clk 0:01:00]} 23. Qxe6 {[%clk 0:01:16]}  Rxe6 {[%clk 0:00:59]} 24. Rbxb7 {[%clk 0:01:16]}  Rxb7 {[%clk 0:00:57]} 25. Rxb7 {[%clk 0:01:17]}  h5 {[%clk 0:00:52]} 26. f4 {[%clk 0:01:05]}  Nh4 {[%clk 0:00:45]} 27. d5 {[%clk 0:01:01]}  Rd6 {[%clk 0:00:42]} 28. Bb4 {[%clk 0:01:00]}  Rd7 {[%clk 0:00:39]} 29. Rxd7 {[%clk 0:00:59]}  Nxd7 {[%clk 0:00:40]} 30. Bf1 {[%clk 0:00:58]}  Nb6 {[%clk 0:00:31]} 31. d6 {[%clk 0:00:58]}  Nf5 {[%clk 0:00:24]} 32. Bxa6 {[%clk 0:00:56]}  Nd7 {[%clk 0:00:17]} 33. Bc8 {[%clk 0:00:55]}  Nb6 {[%clk 0:00:13]} 34. Bxf5 {[%clk 0:00:54]} 1-0


[Site "https://www.chess.com"]

[Event "Titled Tuesday Blitz March 07 Late 2023"]
[White "Molenda, Marcin"]
[Black "Liang, Awonder"]
[WhiteFideId "1173065"]
[BlackFideId "2056437"]
[WhiteElo "2286"]
[BlackElo "2508"]
[Result "1-0"]
[Round "01"]
[TimeControl "180+2"]
[Date "2023.03.07"]
[WhiteClock "0:00:05"]
[BlackClock "0:00:05"]

1. e4 {[%clk 0:02:51]}  a5 {[%clk 0:03:00]} 2. d4 {[%clk 0:02:51]}  c6 {[%clk 0:03:00]} 3. d5 {[%clk 0:02:50]}  g6 {[%clk 0:03:00]} 4. Nf3 {[%clk 0:02:46]}  Bg7 {[%clk 0:03:00]} 5. c4 {[%clk 0:02:41]}  d6 {[%clk 0:02:59]} 6. Nc3 {[%clk 0:02:40]}  a4 {[%clk 0:02:59]} 7. a3 {[%clk 0:02:40]}  Nf6 {[%clk 0:02:57]} 8. Bd3 {[%clk 0:02:38]}  Nbd7 {[%clk 0:02:56]} 9. O-O {[%clk 0:02:37]}  Nc5 {[%clk 0:02:56]} 10. Bc2 {[%clk 0:02:38]}  O-O {[%clk 0:02:56]} 11. h3 {[%clk 0:02:37]}  Bd7 {[%clk 0:02:50]} 12. Re1 {[%clk 0:02:34]}  cxd5 {[%clk 0:02:41]} 13. exd5 {[%clk 0:02:32]}  Re8 {[%clk 0:02:37]} 14. Nd4 {[%clk 0:02:26]}  Qb6 {[%clk 0:02:32]} 15. Ndb5 {[%clk 0:02:22]}  Bxb5 {[%clk 0:02:24]} 16. cxb5 {[%clk 0:02:18]}  Nfd7 {[%clk 0:02:20]} 17. Qe2 {[%clk 0:01:33]}  Nb3 {[%clk 0:02:08]} 18. Nxa4 {[%clk 0:01:11]}  Nxc1 {[%clk 0:01:52]} 19. Raxc1 {[%clk 0:01:09]}  Qa5 {[%clk 0:01:52]} 20. b3 {[%clk 0:00:59]}  Rac8 {[%clk 0:01:39]} 21. Bd3 {[%clk 0:00:57]}  Bf6 {[%clk 0:01:39]} 22. Qe3 {[%clk 0:00:45]}  Kg7 {[%clk 0:01:37]} 23. Rxc8 {[%clk 0:00:40]}  Rxc8 {[%clk 0:01:38]} 24. Rc1 {[%clk 0:00:41]}  Rxc1+ {[%clk 0:00:54]} 25. Qxc1 {[%clk 0:00:42]}  Nb6 {[%clk 0:00:54]} 26. Nxb6 {[%clk 0:00:35]}  Qxb6 {[%clk 0:00:55]} 27. a4 {[%clk 0:00:34]}  Qd4 {[%clk 0:00:53]} 28. Bc4 {[%clk 0:00:27]}  Qa7 {[%clk 0:00:40]} 29. Qd2 {[%clk 0:00:25]}  b6 {[%clk 0:00:39]} 30. Qe3 {[%clk 0:00:18]}  Qa5 {[%clk 0:00:38]} 31. g3 {[%clk 0:00:18]}  h5 {[%clk 0:00:34]} 32. Kg2 {[%clk 0:00:19]}  h4 {[%clk 0:00:34]} 33. gxh4 {[%clk 0:00:18]}  Bxh4 {[%clk 0:00:35]} 34. Qd4+ {[%clk 0:00:14]}  Bf6 {[%clk 0:00:36]} 35. Qe3 {[%clk 0:00:13]}  Qa7 {[%clk 0:00:34]} 36. Qd2 {[%clk 0:00:09]}  Qc7 {[%clk 0:00:34]} 37. Qe3 {[%clk 0:00:08]}  Be5 {[%clk 0:00:33]} 38. Kh1 {[%clk 0:00:08]}  Qc8 {[%clk 0:00:32]} 39. Kg2 {[%clk 0:00:08]}  Qd8 {[%clk 0:00:31]} 40. a5 {[%clk 0:00:07]}  bxa5 {[%clk 0:00:31]} 41. b6 {[%clk 0:00:08]}  Qb8 {[%clk 0:00:30]} 42. Ba6 {[%clk 0:00:08]}  e6 {[%clk 0:00:12]} 43. b7 {[%clk 0:00:07]}  exd5 {[%clk 0:00:11]} 44. Qc1 {[%clk 0:00:06]}  d4 {[%clk 0:00:11]} 45. Qc6 {[%clk 0:00:05]}  Kf6 {[%clk 0:00:07]} 46. Bc4 {[%clk 0:00:05]}  Kg7 {[%clk 0:00:05]} 47. Qd5 {[%clk 0:00:05]}  Qc7 {[%clk 0:00:04]} 48. Qxf7+ {[%clk 0:00:03]}  Qxf7 {[%clk 0:00:05]} 49. Bxf7 {[%clk 0:00:04]}  d5 {[%clk 0:00:06]} 50. Bxd5 {[%clk 0:00:04]}  Kf6 {[%clk 0:00:05]} 51. Be4 {[%clk 0:00:05]}  Ke6 {[%clk 0:00:05]} 52. Kf3 {[%clk 0:00:05]}  g5 {[%clk 0:00:05]} 53. Kg4 {[%clk 0:00:05]}  Bf4 {[%clk 0:00:05]} 54. Bd3 {[%clk 0:00:05]}  Kf6 {[%clk 0:00:05]} 55. h4 {[%clk 0:00:05]} 1-0


[Site "https://www.chess.com"]

[Event "Titled Tuesday Blitz March 07 Late 2023"]
[White "Durarbayli, Vasif"]
[Black "Kozin, Yuri"]
[WhiteFideId "13402935"]
[BlackFideId "4129920"]
[WhiteElo "2543"]
[BlackElo "2486"]
[Result "1-0"]
[Round "01"]
[TimeControl "180+2"]
[Date "2023.03.07"]
[WhiteClock "0:00:32"]
[BlackClock "0:00:23"]

1. e4 {[%clk 0:03:00]}  c5 {[%clk 0:02:58]} 2. Nf3 {[%clk 0:03:01]}  e6 {[%clk 0:02:58]} 3. d4 {[%clk 0:03:01]}  cxd4 {[%clk 0:02:59]} 4. Nxd4 {[%clk 0:03:02]}  a6 {[%clk 0:02:59]} 5. Nc3 {[%clk 0:02:58]}  Qc7 {[%clk 0:03:00]} 6. g3 {[%clk 0:02:57]}  Bb4 {[%clk 0:02:59]} 7. Ne2 {[%clk 0:02:55]}  Nf6 {[%clk 0:02:58]} 8. Bg2 {[%clk 0:02:55]}  Nc6 {[%clk 0:02:58]} 9. O-O {[%clk 0:02:55]}  Be7 {[%clk 0:02:55]} 10. h3 {[%clk 0:02:41]}  d6 {[%clk 0:02:51]} 11. g4 {[%clk 0:02:41]}  b5 {[%clk 0:02:45]} 12. Ng3 {[%clk 0:02:41]}  b4 {[%clk 0:02:33]} 13. Nce2 {[%clk 0:02:33]}  e5 {[%clk 0:02:28]} 14. a3 {[%clk 0:02:27]}  bxa3 {[%clk 0:02:24]} 15. Rxa3 {[%clk 0:02:26]}  d5 {[%clk 0:02:14]} 16. exd5 {[%clk 0:02:13]}  Bxa3 {[%clk 0:02:13]} 17. dxc6 {[%clk 0:02:02]}  Bd6 {[%clk 0:02:00]} 18. g5 {[%clk 0:02:00]}  Ng8 {[%clk 0:02:00]} 19. Ne4 {[%clk 0:01:47]}  Bf8 {[%clk 0:01:57]} 20. f4 {[%clk 0:01:41]}  Bf5 {[%clk 0:01:55]} 21. N4g3 {[%clk 0:01:30]}  Rd8 {[%clk 0:01:51]} 22. Qe1 {[%clk 0:01:29]}  Bxc2 {[%clk 0:01:49]} 23. fxe5 {[%clk 0:01:24]}  Bc5+ {[%clk 0:01:41]} 24. Kh1 {[%clk 0:01:24]}  Ne7 {[%clk 0:01:40]} 25. Qc3 {[%clk 0:01:23]}  Bd3 {[%clk 0:01:29]} 26. Qxc5 {[%clk 0:01:21]}  O-O {[%clk 0:01:28]} 27. Re1 {[%clk 0:01:13]}  Bxe2 {[%clk 0:01:20]} 28. Rxe2 {[%clk 0:01:11]}  Rd1+ {[%clk 0:01:16]} 29. Kh2 {[%clk 0:01:11]}  Ng6 {[%clk 0:01:10]} 30. Nf5 {[%clk 0:01:04]}  Re8 {[%clk 0:00:56]} 31. Qd6 {[%clk 0:00:33]}  Qb6 {[%clk 0:00:23]} 32. Qxd1 {[%clk 0:00:32]} 1-0


[Site "https://www.chess.com"]

[Event "Titled Tuesday Blitz March 07 Late 2023"]
[White "Poeta, Caio Medeiros"]
[Black "Paravyan, David"]
[WhiteFideId "2142660"]
[BlackFideId "4194985"]
[WhiteElo "2191"]
[BlackElo "2577"]
[Result "0-1"]
[Round "01"]
[TimeControl "180+2"]
[Date "2023.03.07"]
[WhiteClock "0:02:17"]
[BlackClock "0:02:15"]

1. d4 {[%clk 0:03:00]}  Nf6 {[%clk 0:02:58]} 2. c4 {[%clk 0:02:59]}  g6 {[%clk 0:02:59]} 3. Nc3 {[%clk 0:02:59]}  d5 {[%clk 0:02:59]} 4. cxd5 {[%clk 0:03:00]}  Nxd5 {[%clk 0:03:00]} 5. e4 {[%clk 0:03:00]}  Nxc3 {[%clk 0:03:01]} 6. bxc3 {[%clk 0:03:01]}  Bg7 {[%clk 0:03:01]} 7. Be3 {[%clk 0:03:02]}  c5 {[%clk 0:03:01]} 8. Rc1 {[%clk 0:03:03]}  Qa5 {[%clk 0:02:59]} 9. Qd2 {[%clk 0:03:03]}  cxd4 {[%clk 0:02:54]} 10. cxd4 {[%clk 0:03:04]}  Qxd2+ {[%clk 0:02:54]} 11. Kxd2 {[%clk 0:03:05]}  O-O {[%clk 0:02:52]} 12. Bb5 {[%clk 0:03:05]}  f5 {[%clk 0:02:44]} 13. f3 {[%clk 0:02:55]}  Nc6 {[%clk 0:02:42]} 14. Bxc6 {[%clk 0:02:54]}  bxc6 {[%clk 0:02:43]} 15. Rc5 {[%clk 0:02:53]}  fxe4 {[%clk 0:02:41]} 16. fxe4 {[%clk 0:02:54]}  Rf1 {[%clk 0:02:39]} 17. Rc1 {[%clk 0:02:45]}  Rxc1 {[%clk 0:02:34]} 18. Kxc1 {[%clk 0:02:45]}  Be6 {[%clk 0:02:24]} 19. a4 {[%clk 0:02:27]}  Rb8 {[%clk 0:02:19]} 20. Nf3 {[%clk 0:02:26]}  Rb4 {[%clk 0:02:18]} 21. a5 {[%clk 0:02:24]}  Ra4 {[%clk 0:02:15]} 22. Bd2 {[%clk 0:02:17]}  Ra1+ {[%clk 0:02:15]} 0-1


[Site "https://www.chess.com"]

[Event "Titled Tuesday Blitz March 07 Late 2023"]
[White "Principe, Gerson"]
[Black "Sjugirov, Sanan"]
[WhiteFideId "3804550"]
[BlackFideId "4189302"]
[WhiteElo "2229"]
[BlackElo "2569"]
[Result "0-1"]
[Round "01"]
[TimeControl "180+2"]
[Date "2023.03.07"]
[WhiteClock "0:00:06"]
[BlackClock "0:00:08"]

1. Nf3 {[%clk 0:02:55]}  d5 {[%clk 0:02:59]} 2. e3 {[%clk 0:02:54]}  Nf6 {[%clk 0:02:59]} 3. b3 {[%clk 0:02:53]}  Bf5 {[%clk 0:02:57]} 4. Bb2 {[%clk 0:02:54]}  e6 {[%clk 0:02:58]} 5. Be2 {[%clk 0:02:53]}  h6 {[%clk 0:02:57]} 6. O-O {[%clk 0:02:54]}  Be7 {[%clk 0:02:57]} 7. d4 {[%clk 0:02:55]}  O-O {[%clk 0:02:57]} 8. c4 {[%clk 0:02:55]}  c6 {[%clk 0:02:57]} 9. Nc3 {[%clk 0:02:52]}  Nbd7 {[%clk 0:02:57]} 10. a3 {[%clk 0:02:52]}  a5 {[%clk 0:02:57]} 11. Bd3 {[%clk 0:02:47]}  Bxd3 {[%clk 0:02:48]} 12. Qxd3 {[%clk 0:02:46]}  Qb6 {[%clk 0:02:42]} 13. c5 {[%clk 0:02:30]}  Qa6 {[%clk 0:02:31]} 14. Qxa6 {[%clk 0:02:26]}  Rxa6 {[%clk 0:02:32]} 15. b4 {[%clk 0:02:26]}  Rc8 {[%clk 0:01:55]} 16. Rfc1 {[%clk 0:02:08]}  b5 {[%clk 0:01:44]} 17. Kf1 {[%clk 0:01:30]}  Rca8 {[%clk 0:01:40]} 18. Ke2 {[%clk 0:01:27]}  Ne4 {[%clk 0:01:37]} 19. Nxe4 {[%clk 0:01:25]}  dxe4 {[%clk 0:01:38]} 20. Nd2 {[%clk 0:01:25]}  f5 {[%clk 0:01:37]} 21. Nb3 {[%clk 0:01:16]}  Bd8 {[%clk 0:01:28]} 22. Bc3 {[%clk 0:01:13]}  axb4 {[%clk 0:01:17]} 23. axb4 {[%clk 0:01:09]}  Ra2+ {[%clk 0:01:13]} 24. Bd2 {[%clk 0:01:05]}  R2a3 {[%clk 0:00:59]} 25. Na5 {[%clk 0:01:01]}  Rxa1 {[%clk 0:00:55]} 26. Rxa1 {[%clk 0:01:02]}  Nf6 {[%clk 0:00:30]} 27. Nb3 {[%clk 0:00:36]}  Rxa1 {[%clk 0:00:27]} 28. Nxa1 {[%clk 0:00:37]}  Bc7 {[%clk 0:00:27]} 29. h3 {[%clk 0:00:31]}  Kf7 {[%clk 0:00:26]} 30. Nb3 {[%clk 0:00:30]}  Ke7 {[%clk 0:00:25]} 31. Ke1 {[%clk 0:00:24]}  g5 {[%clk 0:00:25]} 32. Ke2 {[%clk 0:00:23]}  h5 {[%clk 0:00:24]} 33. g3 {[%clk 0:00:20]}  Nh7 {[%clk 0:00:16]} 34. Be1 {[%clk 0:00:19]}  Nf6 {[%clk 0:00:16]} 35. Bd2 {[%clk 0:00:19]}  Nd5 {[%clk 0:00:15]} 36. Nc1 {[%clk 0:00:19]}  Kf6 {[%clk 0:00:14]} 37. Nb3 {[%clk 0:00:17]}  Kf7 {[%clk 0:00:07]} 38. Kf1 {[%clk 0:00:17]}  Ke7 {[%clk 0:00:07]} 39. Ke2 {[%clk 0:00:17]}  f4 {[%clk 0:00:05]} 40. gxf4 {[%clk 0:00:17]}  gxf4 {[%clk 0:00:06]} 41. exf4 {[%clk 0:00:13]}  Bxf4 {[%clk 0:00:07]} 42. Na5 {[%clk 0:00:10]}  Kd7 {[%clk 0:00:07]} 43. Be1 {[%clk 0:00:09]}  Bc7 {[%clk 0:00:07]} 44. Nb3 {[%clk 0:00:10]}  Nf4+ {[%clk 0:00:07]} 45. Ke3 {[%clk 0:00:09]}  Nxh3 {[%clk 0:00:07]} 46. Kxe4 {[%clk 0:00:09]}  Nf4 {[%clk 0:00:05]} 47. Nd2 {[%clk 0:00:08]}  h4 {[%clk 0:00:04]} 48. Nf3 {[%clk 0:00:08]}  h3 {[%clk 0:00:05]} 49. Bd2 {[%clk 0:00:06]}  Nd5 {[%clk 0:00:05]} 50. Bg5 {[%clk 0:00:06]}  h2 {[%clk 0:00:05]} 51. Nxh2 {[%clk 0:00:04]}  Bxh2 {[%clk 0:00:05]} 52. f4 {[%clk 0:00:04]}  Bg3 {[%clk 0:00:05]} 53. f5 {[%clk 0:00:04]}  exf5+ {[%clk 0:00:05]} 54. Kxf5 {[%clk 0:00:05]}  Be1 {[%clk 0:00:05]} 55. Ke4 {[%clk 0:00:05]}  Bxb4 {[%clk 0:00:06]} 56. Bc1 {[%clk 0:00:05]}  Ba5 {[%clk 0:00:06]} 57. Kd3 {[%clk 0:00:05]}  Bc7 {[%clk 0:00:07]} 58. Kc2 {[%clk 0:00:05]}  Ke6 {[%clk 0:00:07]} 59. Kd3 {[%clk 0:00:06]}  Kf5 {[%clk 0:00:08]} 60. Bd2 {[%clk 0:00:06]}  Bf4 {[%clk 0:00:08]} 61. Be1 {[%clk 0:00:06]}  Bg5 {[%clk 0:00:08]} 0-1


[Site "https://www.chess.com"]